bitfinex-derivatives/quotes_SOLF0:USTF0_20250720
["timestamp","ask_amount","ask_price","bid_price","bid_amount"]
[1752982327902,1.15,178.64,178.58,3.23]
[1752982328107,3.035694,178.63,178.58,3.23]
[1752982328412,5.5955,178.62,178.58,5.5965]
[1752982328611,4.185694,178.63,178.59,3.23]
[1752982328809,3.035694,178.63,178.59,3.23]
[1752982329014,1.86222943,178.63,178.59,3.23]
[1752982329215,3.01222943,178.63,178.6,3.23]
[1752982329407,3.01222943,178.63,178.59,5.5964]
[1752982329603,3.01222943,178.63,178.62,3.23]
[1752982329912,1.86222943,178.63,178.62,3.23]
[1752982330710,7.45742943,178.63,178.62,3.23]
[1752982331612,5.5952,178.63,178.62,3.23]
[1752982331815,1.86222943,178.64,178.63,3.23]
[1752982332715,3.01222943,178.64,178.6,3.23]
[1752982332917,1.15,178.63,178.61,3.23]
[1752982333120,7.45732943,178.64,178.62,3.23]
[1752982333319,7.45732943,178.64,178.55,1.86222943]
[1752982333516,7.45732943,178.64,178.63,3.23]
[1752982333818,1.86222943,178.64,178.63,3.23]
[1752982334615,1.15,178.67,178.65,3.23]
[1752982334824,3.01222943,178.66,178.63,3.23]
[1752982335021,3.01222943,178.66,178.64,3.23]
[1752982335225,1.15,178.64,178.59,3.23]
[1752982335427,1.86222943,178.65,178.59,3.23]
[1752982336023,1.86222943,178.65,178.6,0.03568864]
[1752982336218,6.7443,178.66,178.61,8.8258]
[1752982336432,6.7443,178.66,178.62,3.23]
[1752982336626,1.86222943,178.65,178.62,3.23]
[1752982336923,1.86222943,178.65,178.63,3.23]
[1752982337128,8.60682943,178.65,178.63,3.23]
[1752982337329,8.60682943,178.65,178.64,3.23]
[1752982337529,5.5949,178.64,178.62,3.23]
[1752982337823,5.5949,178.64,178.63,3.23]
[1752982338017,5.5949,178.64,178.6,0.03568864]
[1752982338018,6.7458,178.61,178.6,0.03568864]
[1752982338217,1.15,178.59,178.57,3.23]
[1752982338427,1.86222943,178.58,178.55,3.23]
[1752982338726,7.45962943,178.56,178.55,3.23]
[1752982338927,1.86222943,178.56,178.55,3.23]
[1752982339325,7.45962943,178.56,178.55,3.23]
[1752982339525,1.86222943,178.56,178.55,3.23]
[1752982339927,1.86222943,178.58,178.55,3.23]
[1752982340548,1.86222943,178.58,178.56,3.26]
[1752982340827,119.86,178.63,178.56,3.26]
[1752982340828,1.86222943,178.6,178.56,3.26]
[1752982341030,1.86222943,178.6,178.58,3.26]
[1752982341430,1.86222943,178.6,178.59,3.26]
[1752982341630,3.01222943,178.6,178.51,3.26]
[1752982341827,3.01222943,178.6,178.48,4.6433036]
[1752982341828,3.01222943,178.6,178.53,3.26]
[1752982342029,8.60852943,178.6,178.56,3.26]
[1752982342324,3.01222943,178.6,178.52,3.26]
[1752982342526,1.86222943,178.59,178.55,5.5974]
[1752982342726,1.86222943,178.59,178.52,3.26]
[1752982342926,1.15,178.6,178.52,3.26]
[1752982343229,3.03570874,178.61,178.57,3.26]
[1752982343426,1.15,178.62,178.57,3.26]
[1752982343729,3.03570874,178.63,178.6,3.26]
[1752982343931,1.15,178.65,178.6,3.26]
[1752982344131,3.03570874,178.66,178.6,3.26]
[1752982344820,241.22791557,178.68,178.63,3.26]
[1752982345020,0.03575159,178.65,178.63,3.26]
[1752982345233,8.66596033,178.65,178.64,3.26]
[1752982345533,3.07146033,178.65,178.64,3.26]
[1752982345735,4.18570874,178.67,178.64,3.26]
[1752982345928,5.5943,178.66,178.64,3.26]
[1752982346124,4.18570874,178.65,178.62,3.26]
[1752982346325,1.15,178.64,178.62,3.26]
[1752982346525,8.63030874,178.65,178.63,3.26]
[1752982346730,9.78030874,178.65,178.63,3.26]
[1752982347128,6.7448,178.64,178.6,3.26]
[1752982347532,5.5948,178.64,178.6,3.26]
[1752982347933,6.7448,178.64,178.6,3.26]
[1752982348128,6.7452,178.63,178.59,5.5963]
[1752982348332,6.7452,178.63,178.61,3.26]
[1752982350634,1.15,178.63,178.61,3.26]
[1752982351535,4.17570874,178.62,178.54,3.26]
[1752982351840,4.17570874,178.62,178.56,3.26]
[1752982352435,1.14,178.61,178.59,3.26]
[1752982352637,1.14,178.59,178.57,3.26]
[1752982352831,1.14,178.59,178.49,7.67901234]
[1752982353038,1.14,178.59,178.58,3.26]
[1752982353728,4.17570874,178.6,178.58,3.26]
[1752982353937,4.21123706,178.6,178.58,3.26]
[1752982354339,0.03552832,178.6,178.59,3.26]
[1752982360234,4.21123706,178.6,178.55,5.5975]
[1752982360436,3.03570874,178.58,178.57,3.26]
[1752982361235,1.14,178.58,178.48,4.6433036]
[1752982361443,3.03570874,178.57,178.56,3.26]
[1752982362431,1.14,178.6,178.56,3.26]
[1752982362637,3.03570874,178.62,178.56,3.26]
[1752982362841,0.03568753,178.58,178.56,3.26]
[1752982363540,0.03568753,178.58,178.57,5.597]
[1752982363747,0.03568753,178.58,178.57,3.26]
[1752982364934,3.03912807,178.58,178.57,3.26]
[1752982365133,1.89912807,178.58,178.5,4.31937977]
[1752982365337,1.14,178.56,178.54,3.26]
[1752982365538,3.00344054,178.55,178.54,3.26]
[1752982365737,8.60114054,178.55,178.54,3.26]
[1752982366146,3.00344054,178.55,178.46,3.26]
[1752982366346,1.86344054,178.55,178.5,3.26]
[1752982366751,1.86344054,178.53,178.46,3.26]
[1752982366950,1.86344054,178.53,178.48,3.26]
[1752982367346,1.86344054,178.53,178.5,3.26]
[1752982367547,0.0355786,178.52,178.5,3.26]
[1752982367849,0.0355786,178.52,178.5,8.8592]
[1752982368045,0.0355786,178.52,178.51,3.26]
[1752982369855,5.6341786,178.52,178.51,3.26]
[1752982370447,0.0355786,178.52,178.51,3.26]
[1752982371258,3.07391276,178.52,178.51,3.26]
[1752982372947,8.67251276,178.52,178.51,3.26]
[1752982373149,0.0355786,178.52,178.51,3.26]
[1752982375257,0.0355786,178.52,178.51,8.8589]
[1752982375951,3.03833416,178.57,178.53,2.99]
[1752982377959,8.63543416,178.57,178.54,2.99]
[1752982378258,9.77543416,178.57,178.55,2.99]
[1752982378459,6.7371,178.57,178.55,2.99]
[1752982378658,8.63543416,178.57,178.56,2.99]
[1752982379059,3.03833416,178.57,178.56,2.99]
[1752982379858,8.63513416,178.58,178.57,2.99]
[1752982380061,3.03833416,178.58,178.57,2.99]
[1752982380564,8.63503416,178.58,178.57,2.99]
[1752982380767,1.14,178.57,178.54,2.99]
[1752982381058,1.14,178.57,178.53,0.03573187]
[1752982381362,1.14,178.57,178.56,2.99]
[1752982381558,5.5972,178.57,178.56,2.99]
[1752982381763,1.14,178.59,178.53,0.03573187]
[1752982381764,1.14,178.59,178.57,2.99]
[1752982381966,5.5963,178.6,178.59,2.99]
[1752982382258,3.03833416,178.6,178.59,2.99]
[1752982382665,3.03833416,178.64,178.59,2.99]
[1752982382859,1.14,178.66,178.59,2.99]
[1752982383064,3.03833416,178.65,178.59,2.99]
[1752982383565,1.14,178.66,178.6,2.99]
[1752982383765,4.17833416,178.66,178.6,2.99]
[1752982384162,3.03833416,178.66,178.62,2.99]
[1752982384762,8.63283416,178.66,178.62,2.99]
[1752982385263,121.90791557,178.68,178.62,2.99]
[1752982385464,3.03833416,178.67,178.62,2.99]
[1752982386060,124.2935,178.69,178.62,2.99]
[1752982386262,4.17833416,178.7,178.62,2.99]
[1752982386462,1.14,178.7,178.62,2.99]
[1752982386765,4.17833416,178.7,178.64,2.99]
[1752982386957,1.14,178.7,178.64,2.99]
[1752982387158,4.17833416,178.7,178.64,2.99]
[1752982387356,0.9741214,178.76,178.64,2.99]
[1752982387559,3.03833416,178.7,178.64,2.99]
[1752982387962,1.14,178.71,178.64,2.99]
[1752982388168,3.03833416,178.69,178.64,2.99]
[1752982388368,4.17833416,178.65,178.61,2.99]
[1752982388765,3.03833416,178.67,178.61,2.99]
[1752982388965,1.86173447,178.65,178.61,2.99]
[1752982389165,1.86173447,178.74,178.61,2.99]
[1752982389166,1.14,178.67,178.61,2.99]
[1752982389362,1.86173447,178.64,178.62,2.99]
[1752982389563,3.00173447,178.64,178.62,2.99]
[1752982389880,1.86173447,178.63,178.62,2.99]
[1752982390471,8.59683447,178.64,178.62,2.99]
[1752982390666,6.7351,178.64,178.62,2.99]
[1752982390867,8.59683447,178.64,178.62,2.99]
[1752982391075,4.17491735,178.64,178.62,2.99]
[1752982391274,3.03491735,178.65,178.63,2.99]
[1752982391476,4.17491735,178.65,178.63,2.99]
[1752982391675,9.76971735,178.65,178.59,2.99]
[1752982391876,4.17491735,178.65,178.59,2.99]
[1752982392180,5.5949,178.64,178.59,2.99]
[1752982392382,4.17491735,178.65,178.59,2.99]
[1752982392676,3.03491735,178.65,178.59,2.99]
[1752982392879,3.03491735,178.63,178.59,2.99]
[1752982393078,4.17491735,178.63,178.59,2.99]
[1752982393671,3.03491735,178.63,178.59,2.99]
[1752982393981,3.03491735,178.63,178.59,3.02549645]
[1752982394783,4.17491735,178.63,178.59,3.02549645]
[1752982394986,9.77011735,178.63,178.59,3.02549645]
[1752982395479,5.5957,178.62,178.59,3.02549645]
[1752982395687,4.17491735,178.61,178.59,3.02549645]
[1752982396182,1.14,178.61,178.57,2.99]
[1752982396382,1.14,178.65,178.57,2.99]
[1752982396678,1.14,178.61,178.57,2.99]
[1752982396883,3.03491735,178.62,178.57,2.99]
[1752982397874,3.03491735,178.63,178.57,2.99]
[1752982398093,3.03491735,178.65,178.57,2.99]
[1752982398276,8.62971735,178.65,178.59,5.5963]
[1752982398473,8.62971735,178.65,178.51,119.66]
[1752982398474,1.14,178.63,178.61,2.99]
[1752982398679,1.14,178.62,178.59,2.99]
[1752982398874,1.14,178.62,178.6,2.99]
[1752982399074,4.17491735,178.62,178.61,2.99]
[1752982399279,3.03491735,178.63,178.61,2.99]
[1752982399477,3.03491735,178.63,178.58,5.5966]
[1752982399786,1.14,178.62,178.6,2.99]
[1752982399993,6.7356,178.62,178.6,2.99]
[1752982400188,1.14,178.62,178.61,2.99]
[1752982400484,3.03491735,178.63,178.61,2.99]
[1752982400687,9.78011735,178.63,178.61,2.99]
[1752982400985,4.18491735,178.63,178.61,2.99]
[1752982401287,5.5955,178.62,178.61,2.99]
[1752982401585,1.15,178.62,178.6,0.03564131]
[1752982401787,3.03491735,178.61,178.6,0.03564131]
[1752982401981,3.03491735,178.61,178.6,3.30564131]
[1752982402686,8.63071735,178.61,178.6,3.30564131]
[1752982403187,9.78071735,178.61,178.6,0.03564131]
[1752982406589,5.5964,178.59,178.58,3.27]
[1752982406789,9.78131735,178.59,178.58,3.27]
[1752982407690,1.15,178.58,178.51,3.27]
[1752982407893,3.03491735,178.54,178.51,3.27]
[1752982408487,3.03491735,178.57,178.51,3.27]
[1752982408687,4.18491735,178.55,178.51,3.27]
[1752982408890,3.03491735,178.53,178.52,3.27]
[1752982410188,1.15,178.52,178.47,3.27]
[1752982410391,3.03491735,178.49,178.48,3.27]
[1752982410590,8.63451735,178.49,178.48,3.27]
[1752982411382,9.78451735,178.49,178.48,3.27]
[1752982411784,9.78451735,178.49,178.38,3.03491735]
[1752982411785,5.5999,178.48,178.43,3.27]
[1752982411980,6.7499,178.48,178.43,3.27]
[1752982412182,8.63531735,178.47,178.43,3.27]
[1752982412382,3.03491735,178.47,178.43,3.27]
[1752982412786,9.78531735,178.47,178.43,3.27]
[1752982412985,1.86634564,178.44,178.43,3.27]
[1752982413187,1.86634564,178.44,178.36,119.74]
[1752982413400,1.86634564,178.44,178.41,5.6019]
[1752982413597,1.86634564,178.46,178.42,3.27]
[1752982413797,1.86634564,178.47,178.42,3.27]
[1752982413986,1.86634564,178.47,178.43,3.27]
[1752982414295,1.15,178.5,178.43,3.27]
[1752982414489,1.86634564,178.46,178.43,3.27]
[1752982415086,1.86634564,178.46,178.44,3.27]
[1752982417097,111.44794589,178.54,178.45,3.27]
[1752982417098,1.86634564,178.48,178.45,3.27]
[1752982417501,1.86634564,178.48,178.45,8.8706]
[1752982417797,1.86634564,178.48,178.46,3.27]
[1752982417995,1.15,178.52,178.47,5.6001]
[1752982418204,1.86634564,178.51,178.48,3.27]
[1752982418492,112.59794589,178.54,178.48,3.27]
[1752982418493,1.86634564,178.49,178.48,3.27]
[1752982418899,1.86634564,178.5,178.48,3.27]
[1752982419696,1.15,178.52,178.48,3.27]
[1752982419900,1.86634564,178.5,178.48,3.27]
[1752982420298,1.15,178.49,178.4,3.27]
[1752982420495,1.86634564,178.46,178.4,3.27]
[1752982420704,5.6004,178.47,178.4,8.8723]
[1752982420903,1.86634564,178.45,178.41,3.27]
[1752982422099,1.86634564,178.43,178.42,3.27]
[1752982422596,1.86634564,178.43,178.36,119.74]
[1752982422597,3.01634564,178.43,178.37,3.27]
[1752982422901,1.86634564,178.41,178.37,3.27]
[1752982424697,1.86634564,178.39,178.38,3.27]
[1752982424896,3.01634564,178.39,178.37,3.27]
[1752982425201,1.86634564,178.38,178.37,3.27]
[1752982425697,1.86634564,178.4,178.32,3.27]
[1752982425902,1.86634564,178.4,178.36,3.27]
[1752982426398,1.86634564,178.47,178.31,161.16547094]
[1752982426399,1.86634564,178.43,178.38,3.27]
[1752982426602,1.15,178.45,178.38,3.27]
[1752982426796,1.86634564,178.42,178.38,3.27]
[1752982427803,3.01634564,178.4,178.27,3.27]
[1752982428005,1.86634564,178.38,178.3,3.27]
[1752982428301,1.86634564,178.38,178.31,3.27]
[1752982428605,1.86634564,178.39,178.32,3.27]
[1752982429001,1.86634564,178.39,178.35,3.27]
[1752982429608,6.7518,178.42,178.35,3.27]
[1752982429802,1.86634564,178.41,178.35,3.27]
[1752982430198,1.86634564,178.41,178.34,3.18]
[1752982430199,8.61854564,178.41,178.34,3.18]
[1752982430395,3.01634564,178.41,178.34,3.18]
[1752982430600,1.15,178.39,178.34,3.18]
[1752982430802,7.46944564,178.38,178.34,3.18]
[1752982431000,1.86634564,178.38,178.34,3.18]
[1752982431403,8.65505395,178.38,178.34,3.18]
[1752982431904,0.03550831,178.38,178.34,3.18]
[1752982432409,0.03550831,178.38,178.36,3.18]
[1752982433604,0.03550831,178.38,178.37,5.6033]
[1752982433905,0.03550831,178.38,178.37,8.7833]
[1752982435212,0.03550831,178.38,178.37,3.18]
[1752982436204,5.63850831,178.38,178.37,3.18]
[1752982437006,7.50485395,178.38,178.37,3.18]
[1752982437208,5.6037,178.36,178.35,3.18]
[1752982437412,7.47004564,178.36,178.35,3.18]
[1752982438505,8.62004564,178.36,178.35,3.18]
[1752982438706,1.86634564,178.36,178.35,3.18]
[1752982439308,7.46994564,178.36,178.35,3.18]
[1752982440306,5.63870831,178.38,178.34,3.18]
[1752982440506,7.50505395,178.38,178.34,3.18]
[1752982440707,1.86634564,178.36,178.34,3.18]
[1752982440912,1.86634564,178.36,178.29,1.86634564]
[1752982440913,1.86634564,178.36,178.33,3.18]
[1752982441410,1.86634564,178.34,178.29,3.18]
[1752982441613,1.15,178.34,178.29,3.18]
[1752982441806,1.86634564,178.33,178.29,3.18]
[1752982442206,5.6055,178.3,178.25,5.607]
[1752982442511,1.86634564,178.38,178.19,4.6433036]
[1752982442512,1.86634564,178.29,178.26,3.18]
[1752982442914,7.47224564,178.29,178.26,3.18]
[1752982443309,7.47224564,178.29,178.27,3.18]
[1752982443503,1.15,178.31,178.29,3.18]
[1752982443704,1.86634564,178.3,178.22,1.86634564]
[1752982443910,1.86634564,178.32,178.24,1.86634564]
[1752982444215,1.86634564,178.32,178.19,119.52]
[1752982444216,1.86634564,178.3,178.25,3.18]
[1752982444406,1.86634564,178.28,178.25,3.18]
[1752982444814,1.86634564,178.28,178.23,5.6074]
[1752982445018,1.86634564,178.28,178.27,3.18]
[1752982445211,7.47254564,178.28,178.27,3.18]
[1752982445808,3.01634564,178.28,178.25,3.18]
[1752982446009,1.86634564,178.26,178.25,3.18]
[1752982446212,1.15,178.3,178.25,3.18]
[1752982446411,1.15,178.3,178.26,3.18]
[1752982446412,1.86634564,178.3,178.26,3.18]
[1752982447005,7.47254564,178.28,178.21,3.18]
[1752982447219,1.86634564,178.28,178.21,3.18]
[1752982447412,7.47184564,178.3,178.26,5.6065]
[1752982447613,1.86634564,178.3,178.23,3.18]
[1752982447814,1.86634564,178.32,178.24,1.86634564]
[1752982448117,1.86634564,178.32,178.3,3.18]
[1752982448615,1.86634564,178.32,178.3,8.7854]
[1752982448915,1.15,178.35,178.3,3.18]
[1752982449111,1.86634564,178.34,178.3,3.18]
[1752982449319,5.6048,178.33,178.31,3.18]
[1752982449914,5.6048,178.33,178.3,3.18]
[1752982450313,5.6048,178.33,178.3,5.6054]
[1752982450514,5.6048,178.33,178.31,3.18]
[1752982450717,5.6048,178.33,178.32,3.18]
[1752982451108,3.01634564,178.35,178.34,3.18]
[1752982451311,1.86634564,178.35,178.32,3.18]
[1752982451509,3.01634564,178.33,178.25,1.86634564]
[1752982451714,5.605,178.32,178.31,3.18]
[1752982451919,3.01634564,178.33,178.31,3.18]
[1752982452113,1.86634564,178.34,178.25,1.86634564]
[1752982452314,1.86634564,178.34,178.26,3.18]
[1752982452825,5.6046,178.33,178.26,3.18]
[1752982453015,1.86634564,178.34,178.26,3.18]
[1752982453616,1.86634564,178.38,178.3,3.18]
[1752982454325,1.86634564,178.38,178.34,5.6042]
[1752982454524,3.01634564,178.38,178.36,3.18]
[1752982455024,5.6035,178.37,178.36,3.18]
[1752982455726,8.61944564,178.38,178.36,3.18]
[1752982456228,3.01634564,178.38,178.36,3.18]
[1752982456428,1.86634564,178.4,178.32,3.18]
[1752982456725,1.86634564,178.4,178.36,3.18]
[1752982456943,3.01634564,178.4,178.36,3.18]
[1752982457115,8.61894564,178.4,178.36,3.18]
[1752982457316,7.46894564,178.4,178.37,3.18]
[1752982457526,7.46894564,178.4,178.33,1.86634564]
[1752982457527,7.46894564,178.4,178.38,3.18]
[1752982457723,1.86634564,178.4,178.38,3.18]
[1752982457926,1.15,178.39,178.35,3.18]
[1752982458228,3.01634564,178.4,178.32,3.18]
[1752982458422,3.01634564,178.4,178.36,5.6034]
[1752982458623,1.86634564,178.4,178.37,3.18]
[1752982459727,7.46874564,178.4,178.37,3.18]
[1752982460034,1.15,178.39,178.38,3.18]
[1752982460232,1.15,178.39,178.36,3.04]
[1752982460530,0.97604757,178.44,178.34,1.86634564]
[1752982460717,3.01634564,178.43,178.35,3.04]
[1752982460916,5.602,178.42,178.37,5.6032]
[1752982461115,6.752,178.42,178.38,3.04]
[1752982461318,1.15,178.42,178.38,3.04]
[1752982461830,6.7519,178.42,178.38,3.04]
[1752982462024,1.15,178.44,178.39,3.04]
[1752982462332,3.01634564,178.43,178.35,3.04]
[1752982462726,3.01634564,178.43,178.34,1.86634564]
[1752982462925,1.15,178.42,178.39,3.04]
[1752982463138,1.15,178.42,178.4,3.04]
[1752982463531,1.15,178.42,178.41,3.04]
[1752982463831,1.86634564,178.43,178.41,3.04]
[1752982464129,3.01634564,178.43,178.41,3.04]
[1752982464329,8.61794564,178.43,178.41,3.04]
[1752982464530,1.86634564,178.46,178.41,3.04]
[1752982465033,1.86634564,178.46,178.42,3.04]
[1752982465625,1.86634564,178.44,178.42,3.04]
[1752982465823,1.15,178.42,178.4,3.04]
[1752982466029,3.01634564,178.42,178.4,3.04]
[1752982466232,1.15,178.42,178.41,3.04]
[1752982466429,8.61754564,178.44,178.35,1.86634564]
[1752982466635,8.61754564,178.44,178.38,5.6029]
[1752982466826,1.86634564,178.42,178.39,3.04]
[1752982467025,1.86634564,178.4,178.32,1.86634564]
[1752982467232,5.6021,178.41,178.35,3.04]
[1752982467534,5.6018,178.42,178.35,3.04]
[1752982468125,5.6015,178.43,178.36,1.86634564]
[1752982468327,5.6015,178.43,178.37,3.04]
[1752982468526,1.86634564,178.44,178.37,3.04]
[1752982468931,3.01634564,178.44,178.37,3.04]
[1752982469130,5.602,178.42,178.38,3.04]
[1752982469638,1.15,178.41,178.39,3.04]
[1752982470033,1.86634564,178.42,178.39,3.04]
[1752982470233,3.01634564,178.4,178.37,3.04]
[1752982470431,3.01634564,178.4,178.38,3.04]
[1752982470935,1.15,178.39,178.32,3.04]
[1752982471231,1.86634564,178.38,178.29,1.86634564]
[1752982471435,3.01634564,178.36,178.31,3.04]
[1752982471636,1.86634564,178.36,178.31,3.04]
[1752982472335,3.01634564,178.36,178.31,3.04]
[1752982472541,8.62004564,178.36,178.31,3.04]
[1752982472941,1.86634564,178.36,178.32,3.04]
[1752982473142,1.86634564,178.38,178.32,3.04]
[1752982473733,1.86634564,178.38,178.29,1.86634564]
[1752982473734,1.86634564,178.38,178.34,3.04]
[1752982474338,7.46934564,178.38,178.34,3.04]
[1752982474638,7.46934564,178.38,178.32,5.6049]
[1752982474639,1.86634564,178.36,178.29,3.04]
[1752982474841,7.47014564,178.36,178.29,3.04]
[1752982475044,1.15,178.37,178.29,3.04]
[1752982475242,1.86634564,178.36,178.29,3.04]
[1752982475442,1.86634564,178.36,178.32,3.04]
[1752982475947,7.47004564,178.36,178.32,3.04]
[1752982476337,1.86634564,178.33,178.29,3.04]
[1752982476537,1.15,178.34,178.29,3.04]
[1752982476742,3.01634564,178.34,178.29,3.04]
[1752982476944,1.15,178.33,178.29,3.04]
[1752982477346,1.86634564,178.32,178.29,3.04]
[1752982477744,3.01634564,178.32,178.3,3.04]
[1752982478844,1.15,178.31,178.26,3.04]
[1752982479147,1.86634564,178.29,178.21,119.74634564]
[1752982479441,1.86634564,178.29,178.28,3.04]
[1752982479841,3.01634564,178.29,178.21,119.74634564]
[1752982480042,3.01634564,178.29,178.27,3.04]
[1752982480242,1.86634564,178.29,178.22,3.04]
[1752982480749,1.86634564,178.29,178.25,5.6068]
[1752982480940,1.86634564,178.29,178.26,3.04]
[1752982481136,1.86634564,178.29,178.21,119.74634564]
[1752982481137,1.86634564,178.29,178.27,3.04]
[1752982481340,3.01634564,178.29,178.27,3.04]
[1752982481545,1.15,178.28,178.23,5.6074]
[1752982481846,1.15,178.28,178.26,3.04]
[1752982482046,1.86634564,178.27,178.26,3.04]
[1752982483950,1.86634564,178.28,178.27,3.04]
[1752982484650,5.6057,178.3,178.21,117.88]
[1752982484948,1.86634564,178.28,178.25,5.607]
[1752982485148,1.86634564,178.28,178.21,117.88]
[1752982485451,1.86634564,178.28,178.25,5.6069]
[1752982485644,1.86634564,178.28,178.26,3.04]
[1752982485845,1.86634564,178.32,178.26,3.04]
[1752982486042,1.86634564,178.32,178.3,3.04]
[1752982486247,1.86634564,178.32,178.31,3.04]
[1752982486445,6.7545,178.34,178.31,3.04]
[1752982486643,6.7545,178.34,178.32,3.04]
[1752982486843,1.86634564,178.33,178.32,3.04]
[1752982487038,1.86634564,178.38,178.32,3.04]
[1752982487249,1.86634564,178.35,178.32,3.04]
[1752982487549,1.86634564,178.35,178.21,117.88]
[1752982487550,1.86634564,178.35,178.34,3.04]
[1752982489452,1.86634564,178.36,178.34,3.04]
[1752982490454,1.86634564,178.36,178.34,5.604]
[1752982490652,1.86634564,178.36,178.35,3.19]
[1752982492657,1.86634564,178.38,178.35,3.19]
[1752982493256,7.46874564,178.4,178.35,3.19]
[1752982493454,1.86634564,178.4,178.35,3.19]
[1752982493957,1.86634564,178.4,178.37,3.19]
[1752982494352,7.46874564,178.4,178.37,3.19]
[1752982494758,3.01634564,178.4,178.38,3.19]
[1752982494958,1.15,178.38,178.3,1.86634564]
[1752982495158,1.86634564,178.37,178.36,3.19]
[1752982496956,5.6031,178.38,178.37,3.19]
[1752982497149,7.46904564,178.39,178.38,3.19]
[1752982498254,3.01634564,178.39,178.35,3.19]
[1752982498453,1.15,178.38,178.34,3.19]
[1752982498957,6.7533,178.38,178.34,3.19]
[1752982499360,1.86634564,178.35,178.26,3.19]
[1752982499559,1.86634564,178.35,178.27,3.19]
[1752982499853,3.01634564,178.35,178.27,3.19]
[1752982500250,1.15,178.34,178.27,3.19]
[1752982500454,1.86634564,178.33,178.29,5.6058]
[1752982500656,1.86634564,178.33,178.3,3.19]
[1752982501362,1.86634564,178.38,178.29,3.19]
[1752982501363,1.86634564,178.31,178.29,3.19]
[1752982501563,1.15,178.3,178.24,3.19]
[1752982501863,1.86634564,178.28,178.24,3.19]
[1752982502066,1.15,178.32,178.25,3.19]
[1752982502250,1.86634564,178.34,178.26,1.86634564]
[1752982502458,1.15,178.36,178.27,3.19]
[1752982502655,1.86634564,178.35,178.27,3.19]
[1752982503059,1.86634564,178.35,178.31,3.19]
[1752982503968,5.6042,178.35,178.31,3.19]
[1752982504286,1.86634564,178.35,178.31,3.19]
[1752982504461,1.86634564,178.37,178.31,8.7949]
[1752982504663,1.86634564,178.37,178.32,3.19]
[1752982504863,3.01634564,178.37,178.32,3.19]
[1752982505855,1.86634564,178.37,178.32,8.7947]
[1752982506063,1.86634564,178.37,178.33,3.19]
[1752982506259,7.46984564,178.37,178.33,3.19]
[1752982506667,1.86634564,178.39,178.33,3.19]
[1752982506966,3.01634564,178.41,178.33,5.05634564]
[1752982507163,3.01634564,178.41,178.36,3.19]
[1752982507376,1.86634564,178.41,178.36,3.19]
[1752982507559,1.86634564,178.41,178.36,8.7934]
[1752982507759,1.15,178.43,178.37,3.19]
[1752982507959,1.86634564,178.41,178.37,3.19]
[1752982508161,5.6018,178.42,178.37,3.19]
[1752982508356,1.86634564,178.43,178.35,1.86634564]
[1752982508560,1.86634564,178.43,178.36,3.19]
[1752982509063,1.86634564,178.45,178.37,1.86634564]
[1752982509258,0.03537875,178.41,178.32,4.66693661]
[1752982509464,1.86634564,178.38,178.34,3.19]
[1752982509965,1.86634564,178.38,178.36,3.19]
[1752982510668,1.86634564,178.38,178.37,3.19]
[1752982513967,7.46934564,178.38,178.37,3.19]
[1752982514462,1.86634564,178.38,178.37,3.19]
[1752982516861,1.86634564,178.38,178.37,8.7933]